bitfinex/quotes_SOLUSD_20240628
["timestamp","ask_amount","ask_price","bid_price","bid_amount"]
[1719535871726,6.763,147.87,147.82,3.60996343]
[1719535871928,6.7623,147.88,147.82,3.60996343]
[1719535872130,6.7618,147.89,147.82,10.37486343]
[1719535872712,6.7618,147.89,147.83,6.7645]
[1719535873650,6.7614,147.9,147.84,10.37396343]
[1719535874414,16.9034,147.9,147.81,16.9129]
[1719535874614,6.7634,147.86,147.8,10.37576343]
[1719535876142,6.7641,147.84,147.78,23.6828]
[1719535876315,6.7636,147.85,147.79,6.7662]
[1719535876625,6.7632,147.86,147.8,6.7658]
[1719535877230,6.7632,147.86,147.79,3.60996343]
[1719535877231,6.7636,147.85,147.79,10.37616343]
[1719535877411,6.7627,147.87,147.81,6.7654]
[1719535877816,6.7628,147.87,147.81,6.765]
[1719535878019,20.60257265,147.92,147.8,16.914]
[1719535878237,6.7623,147.88,147.82,6.7648]
[1719535879644,16.9041,147.9,147.8,16.914]
[1719535879941,6.7635,147.86,147.8,23.6798]
[1719535880936,16.9041,147.9,147.8,16.914]
[1719535881115,6.7636,147.85,147.8,16.914]
[1719535881315,16.9041,147.9,147.8,16.914]
[1719535881316,6.7632,147.86,147.8,23.6798]
[1719535882516,6.7632,147.86,147.81,6.7654]
[1719535882713,6.7632,147.86,147.81,10.37536343]
[1719535883019,6.7632,147.86,147.8,23.6797]
[1719535883521,6.7639,147.85,147.8,16.914]
[1719535884136,6.7632,147.86,147.8,23.6798]
[1719535884854,6.7632,147.86,147.81,10.37536343]
[1719535885051,6.7632,147.86,147.81,6.7654]
[1719535885540,6.7632,147.86,147.8,23.6798]
[1719535886543,6.7632,147.86,147.81,3.60996343]
[1719535887041,6.7641,147.84,147.79,3.60996343]
[1719535887347,6.7637,147.85,147.79,10.37616343]
[1719535889354,6.764,147.84,147.79,3.60996343]
[1719535889731,16.9059,147.88,147.79,10.37626343]
[1719535889937,6.7635,147.86,147.81,10.37526343]
[1719535890142,6.7627,147.87,147.81,10.37526343]
[1719535891054,6.7632,147.86,147.81,10.37526343]
[1719535891361,6.7632,147.86,147.81,3.60996343]
[1719535892747,6.7632,147.86,147.81,10.37526343]
[1719535896250,16.9027,147.91,147.83,3.60996343]
[1719535896553,6.7618,147.89,147.85,3.60996343]
[1719535898239,33.8045,147.91,147.77,3.60996343]
[1719535898445,20.0,147.9,147.75,46.6545]
[1719535898652,20.0,147.9,147.76,26.74186343]
[1719535898653,16.9085,147.86,147.76,26.74186343]
[1719535899335,16.9085,147.86,147.76,33.50916343]
[1719535899336,6.7651,147.82,147.76,33.50916343]
[1719535899743,16.9045,147.89,147.78,3.60996343]
[1719535899934,6.764,147.84,147.8,3.60996343]
[1719535900375,6.7672,147.78,147.71,6.7699]
[1719535900568,6.7677,147.76,147.7,25.9621116]
[1719535900736,6.7668,147.78,147.73,2.2661116]
[1719535900934,20.0,147.77,147.73,2.2661116]
[1719535901247,20.0,147.77,147.72,6.7695]
[1719535901454,26.7674,147.77,147.73,2.2661116]
[1719535902027,6.7677,147.76,147.71,2.2661116]
[1719535902852,6.7683,147.75,147.71,2.2661116]
[1719535903233,16.9186,147.77,147.67,8.7074116]
[1719535903438,6.769,147.74,147.67,32.4080116]
[1719535903681,133.8232,147.83,147.67,25.6366116]
[1719535903682,6.7691,147.73,147.67,25.6366116]
[1719535903832,16.915,147.8,147.69,2.2661116]
[1719535904146,20.0,147.79,147.71,2.2661116]
[1719535904346,20.0,147.79,147.67,23.3705]
[1719535904347,16.9197,147.76,147.67,8.7074116]
[1719535904559,6.7697,147.72,147.67,8.7074116]
[1719535904737,10.63302465,147.72,147.67,8.7074116]
[1719535905447,3.86332465,147.72,147.67,8.7074116]
[1719535906050,6.7704,147.71,147.67,8.7074116]
[1719535906450,3.86332465,147.72,147.67,8.7074116]
[1719535907551,3.86332465,147.72,147.69,2.2661116]
[1719535907939,3.86332465,147.72,147.7,6.7703]
[1719535908251,3.86332465,147.72,147.69,2.2661116]
[1719535908632,3.86332465,147.72,147.69,9.0369116]
[1719535909041,3.86332465,147.72,147.69,2.2661116]
[1719535909660,3.86332465,147.72,147.71,2.2661116]
[1719535914166,10.63282465,147.72,147.71,2.2661116]
[1719535914344,3.86332465,147.72,147.71,2.2661116]
[1719535915245,3.86332465,147.72,147.68,1.01714038]
[1719535915562,6.7705,147.7,147.67,6.4413]
[1719535915748,16.9257,147.71,147.66,0.6383143]
[1719535915950,3.86332465,147.72,147.62,6.6572]
[1719535916144,34.68332465,147.72,147.62,6.6572]
[1719535916347,20.0,147.71,147.62,6.6572]
[1719535916739,6.7722,147.67,147.62,6.6572]
[1719535916967,6.7714,147.68,147.62,14.44824038]
[1719535917155,16.927,147.7,147.59,0.04014789]
[1719535917355,130.82,147.72,147.59,0.04014789]
[1719535917356,6.7737,147.63,147.59,0.04014789]
[1719535917549,20.0,147.69,147.59,0.04014789]
[1719535917750,6.7725,147.66,147.59,0.04014789]
[1719535917950,20.0,147.69,147.59,0.04014789]
[1719535918157,20.0,147.7,147.6,16.9371]
[1719535918462,6.7736,147.64,147.59,0.04014789]
[1719535918683,16.9289,147.68,147.59,0.04014789]
[1719535918871,6.7723,147.66,147.6,6.7749]
[1719535919272,6.7724,147.66,147.59,6.81564789]
[1719535919455,6.7724,147.66,147.6,6.7747]
[1719535919860,6.7724,147.66,147.59,0.04014789]
[1719535919861,16.9318,147.66,147.59,0.04014789]
[1719535920173,6.775,147.6,147.59,0.04014789]
[1719535920352,6.7746,147.61,147.59,0.04014789]
[1719535920551,6.7741,147.63,147.59,0.04014789]
[1719535920763,6.7733,147.64,147.59,0.04014789]
[1719535920958,17.1583,147.67,147.59,0.04014789]
[1719535920959,20.0,147.63,147.59,0.04014789]
[1719535921344,16.9293,147.68,147.59,0.04014789]
[1719535921555,6.7728,147.65,147.59,6.81564789]
[1719535921762,16.9293,147.68,147.59,0.04014789]
[1719535922269,6.7723,147.66,147.6,6.7749]
[1719535922476,16.9295,147.68,147.59,0.04014789]
[1719535922650,16.9254,147.71,147.59,0.04014789]
[1719535922846,6.7728,147.65,147.59,6.81554789]
[1719535923347,20.0,147.7,147.59,0.04014789]
[1719535926276,6.7728,147.65,147.6,6.0717]
[1719535926961,6.7724,147.66,147.6,12.8467]
[1719535927462,33.8558,147.69,147.59,0.04014789]
[1719535927771,6.7742,147.62,147.59,0.04014789]
[1719535928065,6.775,147.6,147.59,0.04014789]
[1719535929052,20.0,147.68,147.59,0.04014789]
[1719535929053,6.7744,147.62,147.59,0.04014789]
[1719535929476,6.7746,147.61,147.59,0.04014789]
[1719535929655,6.7742,147.62,147.59,0.04014789]
[1719535929853,6.7746,147.61,147.59,0.04014789]
[1719535930147,6.7742,147.62,147.59,0.04014789]
[1719535930770,6.7738,147.63,147.59,0.04014789]
[1719535931467,6.7742,147.62,147.59,0.04014789]
[1719535932353,6.775,147.6,147.59,0.04014789]
[1719535932691,6.7741,147.62,147.59,0.04014789]
[1719535932984,16.9325,147.65,147.59,0.04014789]
[1719535933352,6.7742,147.62,147.59,0.04014789]
[1719535934364,6.775,147.6,147.59,0.04014789]
[1719535935659,26.775,147.6,147.59,0.04014789]
[1719535937571,26.775,147.6,147.59,4.789e-05]
[1719535940597,6.7787,147.52,147.51,0.8479656]
[1719535940898,23.7255,147.52,147.51,0.8479656]
[1719535941598,23.7255,147.52,147.51,6.56e-05]
[1719535942891,43.7255,147.52,147.51,6.56e-05]
[1719535943086,6.7804,147.49,147.42,8.2545656]
[1719535943402,6.7812,147.47,147.42,1.4713656]
[1719535943905,36.9468,147.52,147.42,1.4713656]
[1719535944203,16.9497,147.5,147.42,1.4713656]
[1719535944367,20.0,147.49,147.42,1.4713656]
[1719535944567,16.9524,147.48,147.42,1.4713656]
[1719535944774,6.7827,147.44,147.41,15.9541]
[1719535944965,6.7829,147.43,147.41,15.9541]
[1719535945170,6.7824,147.44,147.41,15.9541]
[1719535945395,6.7818,147.46,147.41,15.9541]
[1719535945965,26.7804,147.49,147.42,6.7832]
[1719535946171,6.7804,147.49,147.43,6.7824]
[1719535946398,6.7825,147.44,147.37,23.7487]
[1719535946601,36.9517,147.48,147.37,16.9635]
[1719535946802,36.9517,147.48,147.38,6.7847]
[1719535947107,6.7827,147.44,147.38,6.7847]
[1719535947270,6.7819,147.45,147.39,6.7847]
[1719535947476,6.7824,147.44,147.38,6.7851]
[1719535947781,6.7819,147.46,147.37,16.9635]
[1719535948292,6.7819,147.46,147.4,6.7842]
[1719535948998,20.0,147.48,147.41,23.7417]
[1719535949207,20.0,147.54,147.41,23.7417]
[1719535949880,16.9475,147.52,147.41,16.9584]
[1719535950083,20.0,147.51,147.41,23.7421]
[1719535951777,20.0,147.51,147.42,22.7273]
[1719535952193,6.78,147.5,147.43,23.141]
[1719535952506,6.7793,147.51,147.45,6.7817]
[1719535953299,16.9438,147.55,147.46,6.7814]
[1719535953494,20.0,147.54,147.45,16.9541]
[1719535953679,6.7788,147.52,147.46,6.7811]
[1719535954195,6.7788,147.52,147.47,6.781]
[1719535954407,6.7784,147.53,147.47,6.781]
[1719535954577,6.7784,147.53,147.48,6.7805]
[1719535954777,6.7778,147.54,147.48,6.7805]
[1719535956105,16.9404,147.58,147.47,16.952]
[1719535956410,6.7788,147.52,147.47,16.952]
[1719535956785,6.7782,147.54,147.47,16.952]
[1719535956989,6.7778,147.54,147.49,16.9498]
[1719535957287,6.7773,147.55,147.49,23.7298]
[1719535957505,6.7779,147.54,147.48,6.7804]
[1719535957680,6.7784,147.53,147.48,6.7805]
[1719535958197,6.7779,147.54,147.48,6.7805]
[1719535958804,6.7774,147.55,147.49,6.78]
[1719535959908,6.7774,147.55,147.5,6.7795]
[1719535960106,6.7769,147.56,147.5,6.7795]
[1719535960310,6.7776,147.55,147.48,23.731]
[1719535961022,6.7779,147.54,147.49,6.7801]
[1719535961323,6.7774,147.55,147.49,6.7801]
[1719535962410,6.7779,147.54,147.48,23.7313]
[1719535962712,6.7779,147.54,147.49,6.7801]
[1719535963096,6.7774,147.55,147.49,6.7801]
[1719535964097,6.7778,147.54,147.49,6.7801]
[1719535964295,6.7778,147.54,147.48,23.7313]
[1719535965104,6.7778,147.54,147.49,6.7801]
[1719535965291,6.7773,147.56,147.49,6.7801]
[1719535965493,20.0,147.57,147.49,6.7801]
[1719535965692,20.0,147.57,147.5,6.7796]
[1719535965693,6.7772,147.56,147.5,6.7796]
[1719535966101,6.7774,147.55,147.5,6.7796]
[1719535966803,6.7774,147.55,147.49,6.78]
[1719535967590,20.0,147.57,147.5,6.7796]
[1719535967591,6.777,147.56,147.5,6.7796]
[1719535967792,6.777,147.56,147.51,6.7791]
[1719535968100,16.9371,147.61,147.52,6.4235]
[1719535968504,6.7763,147.58,147.52,13.2021]
[1719535968715,6.7765,147.57,147.52,13.2021]
[1719535968910,6.7761,147.58,147.53,1.35547341]
[1719535969290,6.7761,147.58,147.52,30.1482]
[1719535969291,6.776,147.58,147.52,30.1482]
[1719535969619,16.9336,147.64,147.54,16.9437]
[1719535969829,122.0,147.66,147.56,6.7768]
[1719535969830,6.7745,147.62,147.56,6.7768]
[1719535970127,6.7742,147.62,147.56,6.7768]
[1719535970303,6.7744,147.62,147.56,16.9417]
[1719535970511,6.7744,147.62,147.56,23.7181]
[1719535972302,6.7744,147.62,147.57,6.7764]
[1719535973849,6.7737,147.63,147.57,6.7764]
[1719535974132,122.0,147.66,147.58,23.7147]
[1719535974341,6.7741,147.62,147.57,6.7763]
[1719535974834,6.7737,147.63,147.57,6.7763]
[1719535975210,6.7741,147.62,147.57,6.7763]
[1719535975418,122.0,147.66,147.57,6.7763]
[1719535975419,6.7738,147.63,147.57,6.7763]
[1719535975612,6.7741,147.62,147.57,6.7763]
[1719535975809,6.7738,147.63,147.57,6.7763]
[1719535976014,128.7727,147.66,147.58,16.9388]
[1719535976196,122.0,147.66,147.52,37.3835]
[1719535976402,122.0,147.66,147.53,1.35481731]
[1719535977012,6.7735,147.64,147.58,6.7759]
[1719535977214,122.0,147.66,147.6,22.8292]
[1719535977215,128.7726,147.66,147.6,22.8292]
[1719535977418,6.773,147.65,147.6,16.0543]
[1719535977703,6.773,147.65,147.6,22.8292]
[1719535978124,128.7724,147.66,147.6,22.8292]
[1719535978808,128.7724,147.66,147.6,29.4099]
[1719535979018,128.7724,147.66,147.61,6.7744]
[1719535979222,122.0,147.66,147.61,6.7744]
[1719535982303,128.7723,147.66,147.61,6.7744]
[1719535982705,122.0,147.66,147.61,6.7744]
[1719535983217,122.0,147.66,147.62,8.1285768]
[1719535983419,122.0,147.66,147.63,6.7735]
[1719535983727,122.0,147.66,147.64,1.35439053]
[1719535984330,122.0,147.66,147.63,6.7735]
[1719535985821,122.0,147.66,147.63,16.9336]
[1719535986212,122.0,147.66,147.64,6.7731]
[1719535987411,122.0,147.66,147.65,6.7727]
[1719535990928,105.3334,147.66,147.65,6.7727]
[1719535992834,57.66619289,147.66,147.65,8.00859332]
[1719535993138,38.96365338,147.66,147.65,6.7727]
[1719535993442,36.92771387,147.66,147.65,6.7727]
[1719535993618,34.89177436,147.66,147.65,6.7727]
[1719535993814,32.85583485,147.66,147.65,6.7727]
[1719535994018,6.7685,147.75,147.69,6.7709]
[1719535994839,6.7685,147.75,147.7,6.7703]
[1719535995940,16.9162,147.79,147.7,16.9258]
[1719535996146,6.7679,147.76,147.7,23.6958]
[1719535997947,6.7679,147.76,147.71,1.35363764]
[1719535999139,6.7679,147.76,147.71,8.12353764]
[1719535999531,20.7246,147.81,147.72,6.7695]
[1719536000040,6.7673,147.77,147.71,6.7698]
[1719536000229,6.7673,147.77,147.72,6.7693]
[1719536001732,6.7668,147.78,147.72,23.6929]
[1719536001930,16.915,147.8,147.69,32.0719]
[1719536002131,16.915,147.8,147.7,6.7703]
[1719536002340,30.96,147.78,147.66,6.7723]
[1719536002735,6.7703,147.71,147.65,38.8492]
[1719536003049,6.7703,147.71,147.66,6.7723]
[1719536003661,16.9197,147.76,147.66,6.7723]
[1719536003662,6.7696,147.72,147.66,6.7723]
[1719536003959,6.7696,147.72,147.67,6.7717]
[1719536004845,6.7692,147.73,147.67,6.7717]
[1719536005225,6.7692,147.73,147.68,6.7713]
[1719536005441,30.96,147.78,147.67,16.9286]
[1719536005656,6.7683,147.75,147.7,6.7704]
[1719536006028,6.7687,147.74,147.69,23.6977]
[1719536006219,6.7691,147.73,147.69,16.9268]
[1719536006421,6.7691,147.73,147.68,6.7712]
[1719536007232,6.7706,147.7,147.64,13.0835]
[1719536007532,15.1107,147.72,147.64,6.773]
[1719536007936,6.7706,147.7,147.65,6.7727]
[1719536008135,15.1107,147.72,147.66,6.7722]
[1719536008653,6.7703,147.71,147.65,6.7726]
[1719536010030,6.7707,147.7,147.64,6.773]
[1719536010649,6.7707,147.7,147.65,6.7727]
[1719536012647,21.8807,147.72,147.66,6.772]
[1719536012855,21.8807,147.72,147.65,16.9312]
[1719536013146,6.77,147.71,147.66,6.7722]
[1719536013350,21.8804,147.72,147.66,6.7722]
[1719536014045,6.7702,147.71,147.65,23.7038]
[1719536014351,15.1107,147.72,147.65,23.7038]
[1719536015765,6.7706,147.7,147.65,23.7038]
[1719536016644,6.7701,147.71,147.65,23.7038]
[1719536017373,6.7705,147.7,147.65,23.7038]
[1719536017662,6.7701,147.71,147.65,23.7038]
[1719536018637,21.8803,147.72,147.65,16.9312]
[1719536019564,15.1107,147.72,147.67,6.7715]
[1719536019948,21.8803,147.72,147.67,6.7715]
[1719536021562,21.8803,147.72,147.66,6.7721]
[1719536023768,6.77,147.71,147.66,6.7721]
[1719536025054,6.77,147.71,147.65,23.7038]
[1719536025380,15.44,147.71,147.65,15.44]
[1719536025674,6.7705,147.7,147.65,22.2127]
[1719536026487,22.2101,147.71,147.65,22.2127]
[1719536026781,22.2101,147.71,147.66,6.7721]
[1719536026948,6.7701,147.71,147.66,6.7721]
[1719536027952,32.9183,147.76,147.65,15.44]
[1719536028158,20.0,147.75,147.66,15.44]
[1719536028379,15.44,147.72,147.66,15.44]
[1719536028567,6.7699,147.72,147.66,22.2121]
[1719536030182,6.77,147.71,147.66,22.2121]
[1719536033190,22.2097,147.72,147.66,22.2121]
[1719536033369,6.77,147.71,147.66,22.2121]
[1719536035687,6.7692,147.73,147.68,6.7713]
[1719536035998,15.44,147.73,147.66,32.3698]
[1719536036296,6.7699,147.72,147.66,39.1419]
[1719536037694,6.7701,147.71,147.66,39.1419]
[1719536040487,6.7717,147.68,147.63,23.7072]
[1719536040790,22.2117,147.68,147.63,23.7072]
[1719536041202,15.44,147.68,147.63,23.7072]
[1719536041368,15.44,147.68,147.64,6.7731]
[1719536041569,22.211,147.69,147.64,6.7731]
[1719536042109,15.44,147.69,147.64,6.7731]
[1719536042264,15.44,147.69,147.65,6.7726]
[1719536044176,22.2106,147.7,147.65,6.7726]
[1719536044372,15.44,147.7,147.65,6.7726]
[1719536044682,6.7697,147.72,147.65,16.9313]
[1719536044886,22.2102,147.71,147.65,16.9313]
[1719536045077,6.7702,147.71,147.66,6.7722]
[1719536045277,6.77,147.71,147.66,6.7722]
[1719536045602,22.21,147.71,147.66,6.7722]
[1719536045972,6.7704,147.7,147.65,6.7727]
[1719536046278,15.44,147.7,147.66,6.7722]
[1719536046493,15.44,147.71,147.64,32.3722]
[1719536046799,15.44,147.71,147.66,6.7721]
[1719536047004,22.2101,147.71,147.66,6.7721]
[1719536048409,6.7701,147.71,147.66,6.7721]
[1719536048720,15.44,147.73,147.67,15.44]
[1719536048885,6.7701,147.71,147.66,16.9305]
[1719536049090,22.2101,147.71,147.66,23.7027]
[1719536049281,6.7701,147.71,147.66,16.9305]
[1719536049488,6.7701,147.71,147.66,23.7028]
[1719536049780,22.2095,147.72,147.67,6.7718]
[1719536049979,6.77,147.71,147.66,23.7026]
[1719536051700,6.7697,147.72,147.67,6.7718]
[1719536052093,22.2097,147.72,147.67,6.7718]
[1719536052397,22.2097,147.72,147.66,23.7026]
[1719536053009,6.77,147.71,147.66,23.7026]
[1719536053383,22.21,147.71,147.66,23.7026]
[1719536054620,15.44,147.71,147.66,23.7026]
[1719536057112,15.44,147.71,147.67,6.7717]
[1719536059808,15.44,147.68,147.65,6.7727]
[1719536060409,15.44,147.68,147.64,23.7056]
[1719536061614,6.7701,147.71,147.64,16.9326]
[1719536061814,22.2106,147.7,147.65,6.7727]
[1719536062005,15.44,147.69,147.65,6.7727]
[1719536062319,15.44,147.69,147.64,16.9326]
[1719536062320,22.2109,147.69,147.64,23.7058]
[1719536062497,15.44,147.68,147.65,6.7727]
[1719536062814,15.44,147.69,147.65,6.7727]
[1719536063905,6.77,147.71,147.65,6.7727]
[1719536064103,15.44,147.69,147.65,6.7727]
[1719536064621,6.7701,147.71,147.65,6.7727]
[1719536064791,15.44,147.69,147.65,6.7727]
[1719536065817,22.2105,147.7,147.65,6.7727]
[1719536066129,15.44,147.7,147.64,16.9326]
[1719536067000,15.44,147.7,147.64,23.7057]
[1719536067200,22.2105,147.7,147.65,6.7726]
[1719536067505,22.2109,147.69,147.64,23.7056]
[1719536068031,22.2109,147.69,147.64,6.7732]
[1719536069014,15.44,147.69,147.64,6.7732]
[1719536069329,15.44,147.69,147.65,6.7727]
[1719536069924,6.7706,147.7,147.65,6.7727]
[1719536070123,6.7701,147.71,147.65,6.7727]
[1719536070427,15.44,147.7,147.65,6.7727]
[1719536070635,15.44,147.66,147.6,23.3842]
[1719536070809,15.44,147.66,147.57,15.7696]
[1719536070810,15.44,147.62,147.58,6.7759]
[1719536071133,6.7733,147.64,147.58,6.7759]
[1719536071134,15.44,147.61,147.58,6.7759]
[1719536071502,15.44,147.61,147.59,6.7752]
[1719536071708,15.44,147.62,147.59,6.7752]
[1719536073731,20.8793,147.7,147.59,15.44]
[1719536073943,15.44,147.66,147.62,6.774]
[1719536074129,89.4101,147.7,147.6,15.44]
[1719536074305,15.44,147.66,147.63,23.7069]
[1719536074511,15.44,147.66,147.63,16.9333]
[1719536075907,6.7717,147.68,147.63,16.9333]
[1719536076111,6.7733,147.64,147.59,16.9382]
[1719536076306,15.44,147.61,147.56,6.4609]
[1719536076527,15.44,147.6,147.55,16.9423]
[1719536077032,15.44,147.6,147.56,6.7765]
[1719536077431,6.7736,147.64,147.58,16.9395]
[1719536077741,15.44,147.63,147.58,16.9395]
[1719536078031,22.2143,147.62,147.56,15.44]
[1719536078220,22.2143,147.62,147.57,6.7761]
[1719536078221,15.44,147.62,147.57,6.7761]
[1719536078609,15.44,147.62,147.58,6.7759]
[1719536079807,22.2139,147.63,147.58,6.7759]
[1719536080407,15.44,147.63,147.58,6.7759]
[1719536080815,15.44,147.62,147.58,6.7759]
[1719536081336,15.44,147.62,147.59,6.7754]
[1719536082622,16.9302,147.67,147.57,16.9407]
[1719536082813,15.44,147.63,147.57,32.3807]
[1719536083228,22.2136,147.63,147.57,16.9407]
[1719536083426,22.2136,147.63,147.58,6.7756]
[1719536084156,15.44,147.63,147.58,6.7756]
[1719536084314,22.2138,147.63,147.58,6.7756]
[1719536084732,15.44,147.63,147.58,6.7756]
[1719536085424,15.44,147.63,147.59,6.7754]
[1719536085944,15.44,147.63,147.58,6.7758]
[1719536086128,22.2138,147.63,147.58,6.7758]
[1719536086518,15.44,147.62,147.58,6.7758]
[1719536087449,6.7751,147.6,147.57,15.44]
[1719536087623,22.2151,147.6,147.55,6.7773]
[1719536088051,15.44,147.6,147.56,6.7768]
[1719536088753,22.2147,147.61,147.56,6.7768]
[1719536090943,22.2146,147.61,147.56,6.7768]
[1719536092246,15.44,147.61,147.57,6.7764]
[1719536093248,21.9842,147.63,147.58,6.7759]
[1719536093452,15.44,147.61,147.58,6.7759]
[1719536093637,15.44,147.62,147.58,6.7759]
[1719536094660,15.44,147.62,147.57,23.717]
[1719536095142,22.2141,147.62,147.57,23.717]
[1719536096457,15.44,147.62,147.58,6.7759]
[1719536100052,21.9843,147.63,147.58,6.7759]
[1719536100254,15.9555,147.67,147.58,15.44]
[1719536100457,6.7728,147.65,147.61,16.9361]
[1719536100668,22.2128,147.65,147.6,6.7747]
[1719536100958,15.9555,147.67,147.59,15.44]
[1719536101261,22.2128,147.65,147.6,23.7122]
[1719536101839,15.44,147.65,147.61,6.7744]
[1719536102943,22.7274,147.67,147.6,16.9373]
[1719536103275,22.7274,147.67,147.61,6.7744]
[1719536103276,6.7725,147.66,147.61,6.7744]
[1719536103438,15.44,147.65,147.61,6.7744]
[1719536103862,22.2128,147.65,147.6,23.7123]
[1719536104344,15.44,147.65,147.6,23.7123]
[1719536104970,15.44,147.65,147.61,6.7744]
[1719536105638,22.2124,147.66,147.61,6.7744]
[1719536106033,6.7718,147.67,147.62,6.774]
[1719536106434,6.7718,147.67,147.62,22.214]
[1719536107740,6.7714,147.68,147.63,6.7735]
[1719536108249,6.771,147.69,147.64,6.7731]
[1719536108453,6.771,147.69,147.64,22.2131]
[1719536108662,22.2106,147.7,147.65,6.7726]
[1719536109344,6.7706,147.7,147.65,6.7726]
[1719536109540,22.2106,147.7,147.65,6.7726]
[1719536109841,38.8687,147.71,147.66,6.7722]
[1719536110059,6.7701,147.71,147.66,6.7722]
[1719536110562,22.2101,147.71,147.66,6.7722]
[1719536112257,6.7701,147.71,147.66,6.7722]
[1719536112462,6.7695,147.73,147.68,6.7712]
[1719536112875,6.7695,147.72,147.67,6.7717]
[1719536113060,22.2095,147.72,147.67,6.7717]
[1719536113367,6.7695,147.72,147.67,6.7717]
[1719536113568,6.7695,147.72,147.67,23.5657922]
[1719536114149,15.44,147.73,147.69,6.7707]
[1719536114343,22.2091,147.73,147.68,23.6992]
[1719536114574,6.7697,147.72,147.68,16.9279]
[1719536115083,6.7697,147.72,147.68,33.56921448]
[1719536115948,6.7697,147.72,147.68,16.9279]
[1719536116149,22.2092,147.73,147.68,23.6991]
[1719536116451,6.7692,147.73,147.68,39.1391]
[1719536118678,6.7687,147.74,147.69,6.7709]
[1719536118856,6.7687,147.74,147.69,22.2109]
[1719536119552,15.44,147.74,147.67,15.6798]
[1719536119866,6.7705,147.7,147.67,15.6798]
[1719536120070,15.44,147.72,147.67,15.6798]
[1719536120071,6.77,147.71,147.67,15.6798]
[1719536120265,22.2096,147.72,147.67,22.4516]
[1719536121563,22.2092,147.73,147.68,6.7712]
[1719536121771,6.7687,147.74,147.69,6.7707]
[1719536121962,22.2087,147.74,147.69,6.7707]
[1719536122158,6.7683,147.75,147.7,6.7704]
[1719536122363,22.2083,147.75,147.7,6.7704]
[1719536122575,22.2083,147.75,147.69,22.2107]
[1719536122770,22.2083,147.75,147.69,6.7707]
[1719536122985,6.7693,147.73,147.68,39.1391]
[1719536123453,22.2087,147.74,147.69,6.7705]
[1719536124585,282.6987,147.78,147.72,6.7691]
[1719536124788,22.2082,147.75,147.7,23.6954]
[1719536125197,22.2082,147.75,147.7,16.925]
[1719536125968,6.7687,147.74,147.7,16.925]
[1719536126379,6.7687,147.74,147.69,22.2108]
[1719536127467,22.2087,147.74,147.69,22.2108]
[1719536127871,15.44,147.76,147.69,32.367]
[1719536128073,6.7681,147.76,147.7,6.77]
[1719536128376,22.2081,147.76,147.7,22.21]
[1719536129461,254.6,147.78,147.71,16.9246]
[1719536129667,276.8072,147.78,147.72,22.2092]
[1719536130093,261.3672,147.78,147.73,6.769]
[1719536130299,276.8072,147.78,147.72,15.44]
[1719536130789,22.2072,147.78,147.72,15.44]
[1719536131698,6.7672,147.78,147.73,15.44]
[1719536131999,6.7664,147.79,147.74,6.7685]
[1719536132693,6.7654,147.81,147.76,6.7676]
[1719536132873,22.2054,147.81,147.75,8.12134059]
[1719536133463,22.2054,147.81,147.75,6.768]
[1719536134294,22.2054,147.81,147.76,1.14651364]
[1719536134490,6.7654,147.81,147.76,6.7677]
[1719536134874,292.6157,147.86,147.76,15.44]